bitfinex-derivatives/quotes_SOLF0:USTF0_20240907
["timestamp","ask_amount","ask_price","bid_price","bid_amount"]
[1725667722219,1.26223258,125.44,125.32,1.3021]
[1725667722919,3.9889,125.38,125.34,3.9899]
[1725667723617,27.95917822,125.4,125.32,1.3021]
[1725667724223,3.9904,125.33,125.32,1.3021]
[1725667728017,27.95917822,125.4,125.26,3.89702825]
[1725667728225,1.26267392,125.39,125.24,3.9712]
[1725667728418,1.26267392,125.39,125.26,3.9925]
[1725667728921,3.9912,125.31,125.26,3.9925]
[1725667729126,27.95917822,125.4,125.24,7.9955482]
[1725667729422,3.9907,125.33,125.24,7.9955482]
[1725667729818,3.9907,125.33,125.28,3.9918]
[1725667730123,3.9907,125.33,125.29,4.1114]
[1725667732219,3.9907,125.33,125.29,8.1031]
[1725667737731,3.9908,125.32,125.29,4.1114]
[1725667739626,23.95,125.38,125.29,2.7537]
[1725667739823,1.26276074,125.37,125.29,2.7537]
[1725667740128,23.95,125.33,125.29,2.7537]
[1725667741936,23.95,125.33,125.26,3.9925]
[1725667742136,23.95,125.33,125.26,6.6508]
[1725667742337,23.95,125.36,125.26,6.6508]
[1725667743037,3.9914,125.3,125.26,6.6508]
[1725667743739,3.9912,125.31,125.27,3.9923]
[1725667747531,3.9905,125.33,125.29,3.9915]
[1725667751446,3.9902,125.34,125.3,3.9913]
[1725667751645,3.9902,125.34,125.26,2.6583]
[1725667752048,3.9905,125.33,125.26,2.6583]
[1725667752349,27.97331587,125.36,125.26,2.6583]
[1725667752742,3.9909,125.32,125.28,3.9919]
[1725667753941,23.95,125.34,125.27,3.9922]
[1725667754141,23.95,125.34,125.26,2.6583]
[1725667754343,23.95,125.34,125.23,150.04823331]
[1725667754344,23.95,125.34,125.14,7.9926]
[1725667754547,23.95,125.34,125.2,1.4157]
[1725667754548,1.26308691,125.33,125.2,1.4157]
[1725667754746,1.26308691,125.33,125.21,6.62983878]
[1725667755044,27.94792609,125.34,125.21,6.62983878]
[1725667755439,3.9912,125.31,125.21,6.62983878]
[1725667755643,27.94792609,125.34,125.21,6.62983878]
[1725667755939,3.9912,125.31,125.26,3.9925]
[1725667756146,3.9912,125.31,125.27,2.7345]
[1725667757345,3.9915,125.3,125.27,2.7345]
[1725667757746,3.9912,125.31,125.27,2.7345]
[1725667757948,27.94792609,125.34,125.27,2.7345]
[1725667758943,3.99792609,125.34,125.27,2.7345]
[1725667759151,227.0,125.41,125.27,2.7345]
[1725667759350,1.26260754,125.4,125.28,1.4]
[1725667759648,1.26260754,125.39,125.3,3.9911]
[1725667759852,1.26260754,125.38,125.3,3.9911]
[1725667760247,3.99,125.35,125.3,3.9911]
[1725667760452,3.98538939,125.39,125.29,3.90553787]
[1725667760650,3.9905,125.33,125.29,3.9916]
[1725667761649,3.9902,125.34,125.29,3.9916]
[1725667761853,23.95,125.43,125.28,5.32949333]
[1725667762054,1.26248235,125.42,125.28,5.32949333]
[1725667762551,3.9877,125.42,125.28,5.32949333]
[1725667762851,250.95,125.46,125.28,5.32949333]
[1725667763050,1.26198034,125.45,125.28,5.32949333]
[1725667764250,250.95,125.46,125.28,5.32949333]
[1725667764451,3.9882,125.4,125.35,3.9898]
[1725667765352,4.05792693,125.4,125.34,3.9899]
[1725667765553,250.95,125.46,125.34,3.9899]
[1725667765855,1.26209253,125.45,125.34,3.9899]
[1725667766448,1.26209253,125.45,125.33,3.9903]
[1725667766648,1.26209253,125.45,125.28,5.32949333]
[1725667767053,1.26209253,125.45,125.32,3.9905]
[1725667767755,1.26209253,125.45,125.28,5.32949333]
[1725667768056,1.26209253,125.45,125.28,1.4]
[1725667768249,23.95,125.43,125.28,1.4]
[1725667768456,1.26243716,125.42,125.28,1.4]
[1725667768753,3.9911,125.31,125.28,1.4]
[1725667769549,3.9909,125.32,125.28,1.4]
[1725667770852,4.09132811,125.33,125.27,2.7345]
[1725667771148,58.24370652,125.41,125.27,2.7345]
[1725667771345,3.9906,125.33,125.27,2.7345]
[1725667772252,3.9906,125.33,125.28,3.9919]
[1725667773054,3.9902,125.34,125.29,3.9915]
[1725667773650,3.9895,125.36,125.31,3.991]
[1725667774060,27.95375421,125.37,125.31,3.991]
[1725667774255,3.99,125.35,125.3,3.9912]
[1725667774462,27.95375421,125.37,125.3,3.9912]
[1725667774653,27.95375421,125.37,125.28,1.4009]
[1725667774852,1.26273683,125.36,125.27,2.7345]
[1725667775251,23.95,125.33,125.27,2.7345]
[1725667775852,23.95,125.31,125.27,2.7345]
[1725667776158,23.95,125.31,125.22,1.4009]
[1725667776357,23.95,125.31,125.22,4.1543]
[1725667776950,23.95,125.33,125.24,3.993]
[1725667777156,23.95,125.3,125.22,4.1543]
[1725667777461,3.9922,125.28,125.23,3.9933]
[1725667777660,3.9922,125.28,125.22,4.1543]
[1725667777860,27.93634998,125.3,125.22,4.1543]
[1725667778358,3.9919,125.29,125.24,3.9932]
[1725667780262,3.9921,125.28,125.24,3.9932]
[1725667781159,3.9918,125.29,125.22,2.7534]
[1725667781367,4.01477485,125.32,125.22,4.0629]
[1725667781666,23.95,125.37,125.22,4.0629]
[1725667781857,3.9916,125.3,125.25,3.9927]
[1725667782764,3.9916,125.3,125.26,3.9926]
[1725667784559,3.9912,125.31,125.26,3.9926]
[1725667785158,3.9909,125.32,125.27,3.9921]
[1725667785757,3.9909,125.32,125.28,3.9918]
[1725667787660,3.9906,125.33,125.28,3.9918]
[1725667787962,3.90673565,125.35,125.28,3.9918]
[1725667788164,3.9909,125.32,125.28,3.9918]
[1725667791661,51.47276757,125.38,125.29,3.9916]
[1725667791861,1.26275339,125.37,125.22,4.0629]
[1725667792064,1.26275339,125.37,125.22,12.0508]
[1725667792266,3.9898,125.35,125.31,3.9908]
[1725667795272,23.95,125.42,125.32,3.9907]
[1725667795569,1.26244974,125.41,125.32,3.9907]
[1725667795869,3.9895,125.36,125.32,3.9907]
[1725667797765,4.06952334,125.36,125.31,8.0824]
[1725667797972,23.95,125.42,125.31,6.6922]
[1725667798165,1.26250722,125.41,125.31,6.6922]
[1725667798565,3.9898,125.35,125.31,6.6922]
[1725667799867,3.9897,125.36,125.32,3.9906]
[1725667800167,8.06959968,125.36,125.32,3.9906]
[1725667800869,3.99,125.35,125.31,6.6923]
[1725667801676,3.9901,125.34,125.31,2.7014]
[1725667801863,23.95,125.36,125.31,2.7014]
[1725667802069,3.98052505,125.35,125.31,2.7014]
[1725667802271,3.9902,125.34,125.31,2.7014]
[1725667802563,23.95,125.36,125.22,7.9879]
[1725667802767,3.92504596,125.36,125.23,4.0998]
[1725667802972,3.9907,125.33,125.28,3.9918]
[1725667803177,8.00076068,125.33,125.28,3.9918]
[1725667803376,8.00076068,125.33,125.23,4.0998]
[1725667803772,8.00076068,125.33,125.29,3.9916]
[1725667804169,4.01006068,125.33,125.27,3.9921]
[1725667804367,51.47177712,125.4,125.23,4.0998]
[1725667804568,1.26259967,125.39,125.23,4.0998]
[1725667804773,3.991,125.32,125.28,3.9919]
[1725667805475,3.991,125.32,125.29,3.9916]
[1725667805771,3.991,125.32,125.23,4.0998]
[1725667805977,3.991,125.32,125.28,3.9918]
[1725667807373,3.9911,125.31,125.28,3.9918]
[1725667807570,3.9911,125.31,125.27,3.9921]
[1725667807773,3.9916,125.3,125.23,4.0998]
[1725667808171,3.9916,125.3,125.26,3.9925]
[1725667808577,3.9918,125.29,125.26,3.9925]
[1725667808774,27.96876049,125.33,125.23,4.0998]
[1725667808974,3.9923,125.28,125.23,4.0998]
[1725667809277,3.9923,125.28,125.25,3.9928]
[1725667809880,3.9918,125.29,125.25,3.9928]
[1725667810077,4.01876049,125.33,125.23,4.0998]
[1725667810279,23.95,125.36,125.23,4.0998]
[1725667810478,34.29391406,125.4,125.29,3.9915]
[1725667810676,1.2627095,125.39,125.29,3.9915]
[1725667810877,5.29026135,125.39,125.29,3.9915]
[1725667811079,25.2127095,125.38,125.28,3.9919]
[1725667811279,1.2627095,125.37,125.23,4.0998]
[1725667812377,1.26286356,125.36,125.23,4.0998]
[1725667812576,23.95,125.38,125.23,4.0998]
[1725667812776,1.26279897,125.37,125.23,4.0998]
[1725667813478,3.9915,125.3,125.26,3.9924]
[1725667815885,4.07395054,125.32,125.23,4.0998]
[1725667816083,23.95,125.38,125.23,4.0998]
[1725667816281,1.26275477,125.37,125.23,4.0998]
[1725667816476,3.9911,125.31,125.27,3.9921]
[1725667817384,3.9908,125.32,125.28,7.94245825]
[1725667817584,3.9908,125.32,125.28,3.9918]
[1725667818085,3.9908,125.32,125.28,8.02310023]
[1725667818386,3.9908,125.32,125.29,3.9917]
[1725667818889,3.9906,125.33,125.29,3.9917]
[1725667819185,3.9906,125.33,125.3,4.89]
[1725667819581,3.9906,125.33,125.31,1.34]
[1725667820790,3.9591216,125.32,125.31,1.34]
[1725667821578,23.95,125.38,125.31,1.34]
[1725667821783,1.26281255,125.37,125.31,1.34]
[1725667821983,1.26281255,125.37,125.32,6.38]
[1725667822383,1.26281255,125.37,125.33,8.49]
[1725667823280,27.9401,125.34,125.33,8.49]
[1725667824189,27.9401,125.34,125.33,7.44]
[1725667824487,31.92660614,125.34,125.33,7.44]
[1725667826288,27.9401,125.34,125.33,4.44]
[1725667826494,32.00846049,125.34,125.33,4.44]
[1725667832090,3.9904,125.33,125.32,2.89000001]
[1725667832395,31.97761155,125.33,125.32,2.89000001]
[1725667832598,27.98721155,125.33,125.31,1.34]
[1725667833394,27.9407,125.32,125.31,1.34]
[1725667839098,23.95,125.31,125.06,11.9963]
[1725667839396,23.95,125.31,125.21,1.4147]
[1725667839597,3.9932,125.25,125.21,1.4147]
[1725667839799,3.94536203,125.24,125.21,1.4147]
[1725667840898,3.9933,125.24,125.21,1.4147]
[1725667841093,7.96382479,125.24,125.21,1.4147]
[1725667841904,3.97052479,125.24,125.21,1.4147]
[1725667842203,3.9931,125.25,125.21,1.4147]
[1725667842398,4.04441546,125.24,125.21,1.4147]
[1725667842794,23.95,125.24,125.19,2.7903]
[1725667843004,28.03435636,125.24,125.14,3.91420813]
[1725667843194,3.9946,125.2,125.15,1.3636]
[1725667843589,28.03435636,125.24,125.15,1.3636]
[1725667843789,23.95,125.22,125.16,5.68]
[1725667844193,3.94016971,125.21,125.16,5.68]
[1725667844391,23.95,125.22,125.16,5.68]
[1725667844803,23.95,125.29,125.16,5.68]
[1725667845000,3.9955,125.17,125.16,5.68]
[1725667850413,3.9955,125.17,125.16,9.33]
[1725667851608,8.03891664,125.18,125.16,9.33]
[1725667852607,3.9955,125.17,125.16,9.33]
[1725667858913,4.06458643,125.18,125.16,9.33]
[1725667859207,31.935,125.27,125.16,9.33]
[1725667859408,3.9955,125.18,125.16,9.33]
[1725667859615,8.09279659,125.18,125.16,9.33]
[1725667860214,3.9955,125.17,125.16,9.33]
[1725667861516,27.9455,125.17,125.16,9.33]
[1725667863418,3.9955,125.17,125.16,9.33]
[1725667863714,3.92940736,125.18,125.16,9.33]
[1725667863913,23.95,125.25,125.16,3.65]
[1725667864112,1.26433642,125.24,125.16,3.65]
[1725667864308,23.95,125.21,125.16,3.65]
[1725667865017,27.96231533,125.21,125.16,3.65]
[1725667865611,27.96231533,125.21,125.17,5.69]
[1725667866422,3.9954,125.18,125.17,5.69]
[1725667868111,4.01231533,125.21,125.17,5.69]
[1725667868309,8.34380638,125.3,125.17,8.4312]
[1725667868521,8.34380638,125.3,125.17,9.7248]
[1725667868713,3.9944,125.21,125.17,9.7248]
[1725667869018,4.02470073,125.2,125.17,9.7248]
[1725667870518,8.01930073,125.2,125.17,9.7248]
[1725667871318,3.9949,125.19,125.17,9.7248]
[1725667872215,8.01930073,125.2,125.17,9.7248]
[1725667872417,3.9946,125.2,125.17,9.7248]
[1725667872611,8.04475577,125.21,125.17,9.7248]
[1725667872816,3.9944,125.21,125.17,9.7248]
[1725667873013,367.95,125.3,125.17,9.7248]
[1725667873215,3.9941,125.22,125.17,9.7248]
[1725667873417,8.03206691,125.22,125.17,9.7248]
[1725667875518,23.95,125.31,125.17,9.7248]
[1725667875718,1.26364269,125.3,125.17,13.6217821]
[1725667875917,23.95,125.31,125.22,3.9936]
[1725667876219,1.2633973,125.3,125.23,2.7096]
[1725667876423,27.89053942,125.31,125.23,2.7096]
[1725667876614,1.26339715,125.3,125.23,2.7096]
[1725667876814,2.68989715,125.3,125.23,2.7096]
[1725667877015,1.26339715,125.29,125.23,2.7096]
[1725667877720,27.89053942,125.31,125.23,2.7096]
[1725667877920,1.26336515,125.3,125.23,2.7096]
[1725667878529,3.9928,125.26,125.23,2.7096]
[1725667882822,23.95,125.26,125.18,1.3902]
[1725667883019,23.95,125.26,125.19,2.7441]
[1725667883223,3.9933,125.24,125.19,6.7388]
[1725667883425,3.9933,125.24,125.19,2.7441]
[1725667883822,3.9933,125.24,125.2,3.9946]
[1725667884233,3.9936,125.23,125.2,3.9946]
[1725667884534,4.0281207,125.24,125.19,2.7441]
[1725667884826,23.95,125.24,125.19,2.7441]
[1725667885028,3.94607659,125.23,125.19,2.7441]
[1725667885229,1.4314,125.3,125.19,2.7441]
[1725667885428,3.9938,125.23,125.19,2.7441]
[1725667885727,8.02535694,125.23,125.19,6.7389]
[1725667885929,3.9938,125.23,125.19,6.7389]
[1725667886228,7.98141845,125.23,125.19,6.7389]
[1725667886525,3.994,125.22,125.19,2.7441]
[1725667887328,3.994,125.22,125.19,6.7389]
[1725667890834,3.994,125.22,125.2,3.65]
[1725667893832,1.4314,125.3,125.2,3.65]
[1725667894136,1.26246233,125.29,125.2,3.65]
[1725667894338,3.9928,125.26,125.21,9.684]
[1725667895236,3.9925,125.27,125.21,5.69]
[1725667896337,3.9925,125.27,125.23,3.9934]
[1725667897227,3.9927,125.26,125.21,5.69]
[1725667897435,27.89053942,125.31,125.21,5.69]
[1725667897634,3.94053942,125.31,125.26,3.9925]
[1725667897829,1.4048,125.35,125.27,3.9349]
[1725667898034,1.3592,125.4,125.27,3.9349]
[1725667898236,3.9903,125.34,125.28,3.9919]
[1725667898430,4.08440528,125.33,125.27,3.9349]
[1725667898638,1.3592,125.4,125.27,3.9349]
[1725667898840,3.9898,125.35,125.3,3.9911]
[1725667899043,1.3592,125.4,125.27,3.9349]
[1725667899235,1.26231731,125.39,125.27,3.9349]
[1725667899542,1.3592,125.4,125.27,3.9349]
[1725667900138,3.92335626,125.42,125.27,3.9349]
[1725667900443,25.3092,125.44,125.27,3.9349]
[1725667900634,25.3092,125.44,125.33,3.9902]
[1725667900945,1.26187442,125.43,125.34,2.7014]
[1725667901138,3.9875,125.43,125.34,4.0318]
[1725667901439,4.07102548,125.45,125.34,8.06611723]
[1725667901634,3.9875,125.43,125.38,3.9886]
[1725667901841,1.3286,125.5,125.38,3.91142437]
[1725667902043,1.26141217,125.49,125.34,4.0318]
[1725667902240,3.9869,125.45,125.4,3.9881]
[1725667902444,3.9869,125.45,125.41,4.0318]
[1725667902840,3.93257151,125.47,125.41,2.7014]
[1725667903032,1.3286,125.5,125.41,2.7014]
[1725667903237,3.9865,125.46,125.41,2.7014]
[1725667903631,5.26157052,125.5,125.41,2.7014]
[1725667903833,1.26135956,125.49,125.41,2.7014]
[1725667904647,1.26145921,125.48,125.41,2.7014]
[1725667904840,1.26145921,125.49,125.41,2.7014]
[1725667905045,1.26145921,125.48,125.41,2.7014]
[1725667905246,1.26145921,125.47,125.41,2.7014]
[1725667905444,5.26157052,125.5,125.41,2.7014]
[1725667905643,1.26151852,125.49,125.41,2.7014]
[1725667908454,3.9863,125.46,125.41,2.7014]
[1725667909243,3.9861,125.47,125.41,2.7014]
[1725667909455,5.26157052,125.5,125.41,2.7014]
[1725667909652,1.26140389,125.49,125.41,2.7014]
[1725667909849,3.9859,125.48,125.41,6.6892]
[1725667910051,5.26157052,125.5,125.41,6.6892]
[1725667910253,1.26135052,125.49,125.41,6.6892]
[1725667910452,5.24675052,125.49,125.42,3.9874]
[1725667910649,3.9854,125.49,125.42,3.9874]
[1725667910851,5.26157052,125.5,125.41,2.7014]
[1725667911051,1.26121349,125.49,125.41,2.7014]
[1725667911648,3.93297052,125.5,125.42,1.414]
[1725667911951,112.70815995,125.53,125.42,1.414]
[1725667912150,1.261126,125.52,125.42,1.414]
[1725667912357,3.9853,125.49,125.42,5.4015]
[1725667912562,7.90123401,125.49,125.42,5.4015]
[1725667913058,7.90123401,125.49,125.43,3.9872]
[1725667913554,7.90123401,125.49,125.42,1.414]
[1725667913555,3.9857,125.48,125.42,1.414]
[1725667913852,3.986,125.47,125.42,5.4015]
[1725667914260,3.91593401,125.49,125.42,1.414]
[1725667914556,3.9865,125.46,125.42,1.414]
[1725667916163,3.9866,125.45,125.42,1.414]
[1725667917362,3.9864,125.46,125.42,1.414]
[1725667919265,3.9864,125.46,125.43,5.69]
[1725667922263,3.9866,125.45,125.43,5.69]
[1725667924068,3.93357239,125.47,125.43,5.69]
[1725667924267,23.95,125.52,125.43,5.69]
[1725667924461,1.26133231,125.51,125.43,5.69]
[1725667924659,3.9865,125.46,125.43,5.69]
[1725667926268,23.95,125.5,125.43,5.69]
[1725667926467,2.55527821,125.49,125.43,5.69]
[1725667926668,1.26137821,125.48,125.43,5.69]
[1725667926968,3.9869,125.44,125.43,5.69]
[1725667927169,31.9649847,125.44,125.43,5.69]
[1725667927572,33.22671599,125.44,125.43,3.5374]
[1725667927872,33.22671599,125.44,125.43,7.1874]
[1725667930866,29.19863129,125.44,125.43,3.46249999]
[1725667931164,3.9892,125.37,125.29,3.89028727]
[1725667931363,3.93696593,125.37,125.3,3.9911]
[1725667931567,23.95,125.43,125.26,4.2402]
[1725667931772,1.26246264,125.42,125.26,4.2402]
[1725667932268,3.9903,125.34,125.26,4.2402]
[1725667932470,4.06503302,125.33,125.26,4.2402]
[1725667932772,3.9903,125.34,125.26,4.2402]
[1725667932966,3.95491926,125.33,125.28,3.9918]
[1725667934070,7.94541926,125.33,125.28,3.9918]
[1725667934472,7.94541926,125.33,125.27,3.9922]
[1725667934672,3.9908,125.32,125.27,3.9922]
[1725667934863,3.95491926,125.33,125.26,4.2402]
[1725667935068,23.95,125.42,125.26,4.2402]
[1725667935267,1.26251886,125.41,125.28,3.9919]
[1725667935675,3.9903,125.34,125.28,3.9919]
[1725667935974,23.95,125.42,125.26,4.2402]
[1725667936174,1.26256036,125.41,125.26,4.2402]
[1725667936675,1.26256036,125.41,125.28,3.9919]
[1725667936882,1.26256036,125.41,125.26,4.2402]
[1725667937075,1.26256036,125.41,125.29,3.9917]
[1725667937374,1.26256036,125.41,125.26,4.2402]
[1725667937575,23.95,125.42,125.28,3.9918]
[1725667937576,3.9903,125.34,125.28,3.9918]
[1725667937779,3.99664846,125.33,125.28,3.9918]
[1725667938376,7.98714846,125.33,125.28,3.9918]
[1725667938579,3.99664846,125.33,125.26,4.2402]
[1725667938882,23.95,125.42,125.26,4.2402]
[1725667939071,1.26268942,125.41,125.27,3.9921]
[1725667939474,3.9906,125.33,125.27,3.9921]
[1725667939674,8.0734726,125.33,125.27,3.9921]
[1725667939871,4.0828726,125.33,125.26,8.2327]
[1725667940080,23.95,125.42,125.26,4.2402]
[1725667940274,1.26280593,125.41,125.26,4.2402]
[1725667940776,23.95,125.4,125.26,4.2402]
[1725667940978,1.26280593,125.39,125.26,4.2402]
[1725667941482,3.9915,125.3,125.26,4.2402]
[1725667942073,3.9912,125.31,125.26,4.2402]
[1725667942274,3.9284733,125.3,125.26,4.2402]
[1725667942777,7.9199733,125.3,125.26,2.8455]
[1725667942976,3.9915,125.3,125.26,2.8455]
[1725667943283,3.9918,125.29,125.26,2.8455]
[1725667945082,3.93882657,125.3,125.2,1.4026]
[1725667945277,23.95,125.36,125.21,2.7844]
[1725667945473,3.9923,125.28,125.22,3.9937]
[1725667945680,137.77557513,125.36,125.21,2.7844]
[1725667945872,1.26326114,125.35,125.21,2.7844]
[1725667946877,1.26339451,125.34,125.21,2.7844]
[1725667947073,3.9928,125.26,125.21,2.7844]
[1725667947273,3.96932657,125.25,125.21,2.7844]
[1725667948083,137.77557513,125.36,125.22,3.9939]
[1725667948274,1.26325767,125.35,125.22,3.9939]
[1725667948882,3.9923,125.28,125.22,3.9939]
[1725667949081,7.94604962,125.28,125.22,3.9939]
[1725667949282,3.95374962,125.28,125.22,3.9939]
[1725667949581,23.95,125.31,125.22,3.9939]
[1725667950083,3.9926,125.27,125.21,6.7786]
[1725667950278,4.01334044,125.26,125.21,6.7786]
[1725667950579,3.9927,125.26,125.21,6.7786]
[1725667950783,3.89951796,125.25,125.21,6.7786]
[1725667951970,3.9927,125.26,125.21,6.7786]
[1725667952171,8.01033421,125.25,125.21,6.7786]
[1725667952373,4.01733421,125.25,125.2,1.4026]
[1725667952573,23.95,125.32,125.2,1.4026]
[1725667952884,1.26374916,125.31,125.2,1.4026]
[1725667953284,23.95,125.27,125.2,1.4026]
[1725667953483,27.98068404,125.27,125.2,1.4026]
[1725667953874,3.9936,125.23,125.2,1.4026]
[1725667954480,3.9936,125.23,125.21,3.48]
[1725667954681,27.98068404,125.27,125.21,3.48]
[1725667955983,3.9933,125.24,125.21,3.48]
[1725667965089,3.9936,125.23,125.21,3.48]
[1725667965590,3.9936,125.23,125.2,1.4026]
[1725667965996,3.9936,125.23,125.03,7.9996]
[1725667965997,23.95,125.23,125.03,7.9996]
[1725667966291,23.95,125.23,125.09,1.3014]
[1725667966292,27.878815,125.23,125.09,1.3014]
[1725667966492,3.9952,125.18,125.12,3.997]
[1725667966683,3.9952,125.18,125.13,1.2977]
[1725667967392,3.9957,125.17,125.13,1.2977]
[1725667967791,23.95,125.22,125.13,1.2977]
[1725667967987,3.928815,125.23,125.13,1.2977]
[1725667968193,3.9957,125.17,125.13,1.2977]
[1725667968389,3.98474119,125.17,125.13,1.2977]
[1725667968592,27.91037335,125.24,125.14,1.3495]
[1725667968891,1.26421459,125.23,125.14,1.3495]
[1725667969085,23.95,125.21,125.14,1.3495]
[1725667969392,28.03416998,125.21,125.14,1.3495]
[1725667969608,3.9954,125.18,125.14,1.3495]
[1725667969790,3.9954,125.18,125.15,1.3026]
[1725667969992,28.03416998,125.21,125.15,1.3026]
[1725667970694,28.03416998,125.21,125.16,3.48]
[1725667970890,3.9954,125.18,125.16,3.48]
[1725667973095,4.08416998,125.21,125.16,3.48]
[1725667973304,23.95,125.27,125.16,3.48]
[1725667973503,1.26405752,125.26,125.16,3.48]
[1725667973802,3.9948,125.2,125.16,3.48]
[1725667973989,23.95,125.25,125.16,3.48]
[1725667974189,27.85072404,125.25,125.16,7.4758]
[1725667974793,3.90072404,125.25,125.16,7.4758]
[1725667975099,23.95,125.24,125.16,7.4758]
[1725667975294,27.85352169,125.24,125.16,7.4758]
[1725667975694,27.85352169,125.24,125.16,3.48]
[1725667976102,3.90352169,125.24,125.16,3.48]
[1725667976401,7.9838,125.29,125.16,3.48]
[1725667976402,23.95,125.22,125.16,3.48]
[1725667976701,3.9954,125.18,125.16,3.48]
[1725667977301,23.95,125.21,125.16,3.48]
[1725667978292,3.9951,125.19,125.16,3.48]
[1725667979507,3.9952,125.18,125.16,3.48]
[1725667979700,3.89618288,125.22,125.16,3.48]
[1725667979892,3.9955,125.17,125.16,3.48]
[1725667980603,4.05641994,125.17,125.16,3.48]
[1725667982103,23.95,125.26,125.16,3.48]
[1725667982305,1.26402954,125.25,125.16,3.48]
[1725667982603,338.5568729,125.41,125.2,173.0]
[1725667982798,109.88275543,125.36,125.21,2.8097]
[1725667982992,113.83192292,125.36,125.21,2.8097]
[1725667983596,3.9906,125.33,125.27,3.9921]
[1725667983802,23.95,125.35,125.27,3.9921]
[1725667984003,25.3559,125.35,125.27,3.9921]
[1725667984907,25.3559,125.35,125.21,2.8097]
[1725667986098,3.9916,125.3,125.24,3.9933]
[1725667986501,25.3559,125.35,125.24,3.9933]
[1725667986910,23.95,125.32,125.24,3.9933]
[1725667987207,23.95,125.32,125.21,2.8097]
[1725667987893,25.3559,125.35,125.22,1.3295]
[1725667988294,3.9919,125.29,125.24,3.9932]
[1725667988497,4.07426778,125.28,125.24,3.9932]
[1725667988901,25.3559,125.35,125.22,5.3233]
[1725667989098,1.16558115,125.34,125.22,1.3295]
[1725667989407,25.3559,125.35,125.24,3.9932]
[1725667990103,23.95,125.31,125.24,3.9932]
[1725667990495,25.3559,125.35,125.22,1.3295]
[1725667991000,3.9907,125.33,125.28,3.9917]
[1725667991395,1.4059,125.35,125.28,3.9917]
[1725667991904,1.4059,125.35,125.29,3.9914]
[1725667992103,1.4059,125.35,125.22,1.3295]
[1725667992403,3.9908,125.32,125.28,3.9919]
[1725667992902,1.4059,125.35,125.28,3.9919]
[1725667993094,1.4059,125.35,125.22,1.3295]
[1725667993599,3.9916,125.3,125.26,3.9926]
[1725667994808,1.4059,125.35,125.25,3.9928]
[1725667995002,1.16531125,125.34,125.22,1.3295]
[1725667995505,3.992,125.29,125.22,1.3295]
[1725667995702,3.96654438,125.28,125.22,1.3295]
[1725667995910,3.9923,125.28,125.24,3.9931]
[1725667996207,7.96882562,125.28,125.24,3.9931]
[1725667997511,3.9923,125.27,125.24,3.9931]
[1725667997708,1.4059,125.35,125.23,3.9936]
[1725667998012,3.9926,125.27,125.23,3.9936]
[1725668000801,1.4059,125.35,125.23,3.9936]
[1725668000802,3.9927,125.26,125.23,3.9936]
[1725668001711,7.92430967,125.27,125.24,3.9933]
[1725668001908,3.9925,125.27,125.24,3.9933]
[1725668002811,3.9925,125.27,125.23,3.9935]
[1725668003212,7.9933,125.27,125.23,3.9935]
[1725668003421,3.9925,125.27,125.22,1.3295]
[1725668004020,7.95576754,125.27,125.22,1.3295]
[1725668004424,7.95576754,125.27,125.24,3.9932]
[1725668006023,3.9927,125.26,125.23,3.9934]
[1725668006323,1.4059,125.35,125.22,1.3295]
[1725668006526,1.16542585,125.34,125.22,1.3295]
[1725668006927,3.9925,125.27,125.24,3.9933]
[1725668007225,3.95727465,125.26,125.24,3.9933]
[1725668008419,7.94997465,125.26,125.23,3.9935]
[1725668009421,7.94997465,125.26,125.24,3.48]